[Event "Titled Tuesday Blitz January 17 Early 2023"]
[White "Le, Tuan Minh"]
[Black "Nakamura, Hikaru"]
[WhiteFideId "12401153"]
[BlackFideId "2016192"]
[WhiteElo "2542"]
[BlackElo "2775"]
[Result "1/2-1/2"]
[Round "08"]
[TimeControl "180+2"]
[Date "2023.01.17"]
[WhiteClock "0:00:10"]
[BlackClock "0:00:10"]

1. d4 {[%clk 0:03:00]}  d6 {[%clk 0:02:55]} 2. e4 {[%clk 0:03:00]}  Nf6 {[%clk 0:02:51]} 3. Nc3 {[%clk 0:03:00]}  g6 {[%clk 0:02:52]} 4. Nf3 {[%clk 0:02:55]}  Bg7 {[%clk 0:02:50]} 5. Bc4 {[%clk 0:02:54]}  O-O {[%clk 0:02:43]} 6. Bb3 {[%clk 0:02:54]}  Nc6 {[%clk 0:02:42]} 7. h3 {[%clk 0:02:50]}  Na5 {[%clk 0:02:40]} 8. O-O {[%clk 0:02:49]}  Nxb3 {[%clk 0:02:38]} 9. axb3 {[%clk 0:02:50]}  e6 {[%clk 0:02:36]} 10. Re1 {[%clk 0:02:49]}  h6 {[%clk 0:02:34]} 11. Qe2 {[%clk 0:02:44]}  b6 {[%clk 0:02:32]} 12. e5 {[%clk 0:02:43]}  Ne8 {[%clk 0:02:32]} 13. Qe4 {[%clk 0:02:33]}  Bd7 {[%clk 0:02:26]} 14. h4 {[%clk 0:02:24]}  f5 {[%clk 0:02:07]} 15. exf6 {[%clk 0:02:24]}  Rxf6 {[%clk 0:02:07]} 16. Bd2 {[%clk 0:02:10]}  a5 {[%clk 0:02:06]} 17. Re2 {[%clk 0:02:06]}  b5 {[%clk 0:02:00]} 18. Qg4 {[%clk 0:01:55]}  Kh7 {[%clk 0:01:53]} 19. Ne4 {[%clk 0:01:54]}  Rf5 {[%clk 0:01:53]} 20. Qh3 {[%clk 0:01:21]}  a4 {[%clk 0:01:43]} 21. bxa4 {[%clk 0:01:21]}  Rxa4 {[%clk 0:01:41]} 22. Rae1 {[%clk 0:01:22]}  Qa8 {[%clk 0:01:32]} 23. g4 {[%clk 0:01:07]}  Rf8 {[%clk 0:01:31]} 24. h5 {[%clk 0:01:08]}  gxh5 {[%clk 0:01:28]} 25. g5 {[%clk 0:00:44]}  Qd5 {[%clk 0:00:54]} 26. Qxh5 {[%clk 0:00:40]}  Kg8 {[%clk 0:00:34]} 27. Qg6 {[%clk 0:00:31]}  Qf5 {[%clk 0:00:31]} 28. Qxf5 {[%clk 0:00:31]}  Rxf5 {[%clk 0:00:31]} 29. Nh4 {[%clk 0:00:32]}  Rd5 {[%clk 0:00:25]} 30. gxh6 {[%clk 0:00:24]}  Bxd4 {[%clk 0:00:25]} 31. Ng6 {[%clk 0:00:20]}  Rh5 {[%clk 0:00:14]} 32. c3 {[%clk 0:00:15]}  Bf6 {[%clk 0:00:14]} 33. Nxf6+ {[%clk 0:00:13]}  Nxf6 {[%clk 0:00:15]} 34. f3 {[%clk 0:00:12]}  Kf7 {[%clk 0:00:14]} 35. Nf4 {[%clk 0:00:13]}  Rg5+ {[%clk 0:00:12]} 36. Kf2 {[%clk 0:00:13]}  e5 {[%clk 0:00:12]} 37. Nd5 {[%clk 0:00:11]}  Rh5 {[%clk 0:00:13]} 38. Nxf6 {[%clk 0:00:12]}  Kxf6 {[%clk 0:00:13]} 39. Rg1 {[%clk 0:00:12]}  Rah4 {[%clk 0:00:13]} 40. Ke1 {[%clk 0:00:11]}  Rh1 {[%clk 0:00:13]} 41. Rg2 {[%clk 0:00:11]}  Rxg1+ {[%clk 0:00:11]} 42. Rxg1 {[%clk 0:00:12]}  Bc6 {[%clk 0:00:12]} 43. Rg7 {[%clk 0:00:09]}  Rh1+ {[%clk 0:00:11]} 44. Kf2 {[%clk 0:00:09]}  Rh2+ {[%clk 0:00:10]} 45. Rg2 {[%clk 0:00:08]}  Rh3 {[%clk 0:00:11]} 46. Rg3 {[%clk 0:00:08]}  Rh1 {[%clk 0:00:10]} 47. Rg7 {[%clk 0:00:07]}  Rh2+ {[%clk 0:00:08]} 48. Rg2 {[%clk 0:00:06]}  Rh3 {[%clk 0:00:03]} 49. Rg3 {[%clk 0:00:04]}  Rxg3 {[%clk 0:00:03]} 50. Kxg3 {[%clk 0:00:05]}  Kg6 {[%clk 0:00:04]} 51. f4 {[%clk 0:00:04]}  Bd7 {[%clk 0:00:03]} 52. fxe5 {[%clk 0:00:04]}  dxe5 {[%clk 0:00:04]} 53. b4 {[%clk 0:00:05]}  c6 {[%clk 0:00:04]} 54. Kf2 {[%clk 0:00:04]}  Bf5 {[%clk 0:00:05]} 55. Be3 {[%clk 0:00:03]}  Kh7 {[%clk 0:00:05]} 56. Bg5 {[%clk 0:00:04]}  Kg6 {[%clk 0:00:05]} 57. Be3 {[%clk 0:00:04]}  Bd3 {[%clk 0:00:05]} 58. Ke1 {[%clk 0:00:04]}  Bc4 {[%clk 0:00:06]} 59. Kf2 {[%clk 0:00:05]}  Bd5 {[%clk 0:00:06]} 60. Kg3 {[%clk 0:00:05]}  Bc4 {[%clk 0:00:06]} 61. Kg4 {[%clk 0:00:06]}  Be6+ {[%clk 0:00:06]} 62. Kf3 {[%clk 0:00:07]}  Bd5+ {[%clk 0:00:07]} 63. Kg4 {[%clk 0:00:07]}  Be6+ {[%clk 0:00:07]} 64. Kf3 {[%clk 0:00:08]}  Bd5+ {[%clk 0:00:07]} 65. Kg4 {[%clk 0:00:09]}  Be4 {[%clk 0:00:07]} 66. Bc1 {[%clk 0:00:08]}  Kf6 {[%clk 0:00:07]} 67. Bg5+ {[%clk 0:00:08]}  Ke6 {[%clk 0:00:08]} 68. Bd2 {[%clk 0:00:07]}  Bh7 {[%clk 0:00:08]} 69. Kg5 {[%clk 0:00:08]}  Bd3 {[%clk 0:00:08]} 70. Be3 {[%clk 0:00:08]}  Bh7 {[%clk 0:00:09]} 71. Bd2 {[%clk 0:00:09]}  Bd3 {[%clk 0:00:09]} 72. Be3 {[%clk 0:00:09]}  Bh7 {[%clk 0:00:10]} 73. Bd2 {[%clk 0:00:10]} 1/2-1/2


[Site "https://www.chess.com"]

[Event "Titled Tuesday Blitz January 17 Early 2023"]
[White "Shimanov, Aleksandr"]
[Black "Babazada, Khazar"]
[WhiteFideId "4198603"]
[BlackFideId "13413554"]
[WhiteElo "2581"]
[BlackElo "2474"]
[Result "0-1"]
[Round "08"]
[TimeControl "180+2"]
[Date "2023.01.17"]
[WhiteClock "0:00:01"]
[BlackClock "0:00:25"]

1. e4 {[%clk 0:03:00]}  Nf6 {[%clk 0:03:00]} 2. e5 {[%clk 0:02:54]}  Nd5 {[%clk 0:03:00]} 3. Qf3 {[%clk 0:02:50]}  Nb6 {[%clk 0:02:59]} 4. d4 {[%clk 0:02:49]}  d6 {[%clk 0:02:59]} 5. Qg3 {[%clk 0:02:43]}  Nc6 {[%clk 0:02:57]} 6. Nf3 {[%clk 0:02:43]}  g6 {[%clk 0:02:57]} 7. exd6 {[%clk 0:02:25]}  cxd6 {[%clk 0:02:57]} 8. c3 {[%clk 0:02:25]}  Bg7 {[%clk 0:02:57]} 9. Be2 {[%clk 0:02:24]}  e5 {[%clk 0:02:57]} 10. dxe5 {[%clk 0:02:23]}  dxe5 {[%clk 0:02:58]} 11. O-O {[%clk 0:02:23]}  O-O {[%clk 0:02:58]} 12. Rd1 {[%clk 0:02:23]}  Qe7 {[%clk 0:02:58]} 13. Bg5 {[%clk 0:02:12]}  f6 {[%clk 0:02:57]} 14. Be3 {[%clk 0:02:12]}  Be6 {[%clk 0:02:57]} 15. Na3 {[%clk 0:02:12]}  Nd5 {[%clk 0:02:57]} 16. Bc4 {[%clk 0:02:08]}  Nxe3 {[%clk 0:02:56]} 17. fxe3 {[%clk 0:02:09]}  Bxc4 {[%clk 0:02:53]} 18. Nxc4 {[%clk 0:02:10]}  Qc5 {[%clk 0:02:53]} 19. Nfd2 {[%clk 0:02:02]}  Rfd8 {[%clk 0:02:34]} 20. Qf2 {[%clk 0:01:53]}  e4 {[%clk 0:02:26]} 21. Qe2 {[%clk 0:01:41]}  f5 {[%clk 0:02:22]} 22. Nb3 {[%clk 0:01:41]}  Qb5 {[%clk 0:02:17]} 23. Kf1 {[%clk 0:01:36]}  Qa4 {[%clk 0:01:56]} 24. Nc5 {[%clk 0:01:29]}  Rxd1+ {[%clk 0:01:37]} 25. Rxd1 {[%clk 0:01:29]}  Qxa2 {[%clk 0:01:38]} 26. Nxb7 {[%clk 0:01:24]}  Qa6 {[%clk 0:01:15]} 27. Rd7 {[%clk 0:01:19]}  Ne5 {[%clk 0:01:12]} 28. Nxe5 {[%clk 0:01:17]}  Qxe2+ {[%clk 0:01:13]} 29. Kxe2 {[%clk 0:01:17]}  Bxe5 {[%clk 0:01:14]} 30. h3 {[%clk 0:01:17]}  a5 {[%clk 0:01:11]} 31. Rd5 {[%clk 0:01:13]}  Rb8 {[%clk 0:01:08]} 32. Rd7 {[%clk 0:01:06]}  a4 {[%clk 0:01:07]} 33. Kd2 {[%clk 0:01:06]}  a3 {[%clk 0:01:05]} 34. bxa3 {[%clk 0:01:04]}  Rc8 {[%clk 0:00:59]} 35. Rd8+ {[%clk 0:01:03]}  Rxd8+ {[%clk 0:00:58]} 36. Nxd8 {[%clk 0:01:04]}  Kf8 {[%clk 0:00:57]} 37. a4 {[%clk 0:01:03]}  Ke8 {[%clk 0:00:55]} 38. Nc6 {[%clk 0:01:03]}  Bc7 {[%clk 0:00:54]} 39. a5 {[%clk 0:00:55]}  Kd7 {[%clk 0:00:55]} 40. Nb4 {[%clk 0:00:36]}  Bxa5 {[%clk 0:00:55]} 41. Nd5 {[%clk 0:00:36]}  Kd6 {[%clk 0:00:52]} 42. Nf4 {[%clk 0:00:32]}  Kc5 {[%clk 0:00:48]} 43. Ne6+ {[%clk 0:00:27]}  Kc4 {[%clk 0:00:49]} 44. Nf8 {[%clk 0:00:25]}  Bxc3+ {[%clk 0:00:48]} 45. Ke2 {[%clk 0:00:25]}  Bb4 {[%clk 0:00:47]} 46. Nxh7 {[%clk 0:00:10]}  Be7 {[%clk 0:00:46]} 47. g4 {[%clk 0:00:04]}  Kc3 {[%clk 0:00:46]} 48. gxf5 {[%clk 0:00:05]}  gxf5 {[%clk 0:00:47]} 49. h4 {[%clk 0:00:05]}  Bxh4 {[%clk 0:00:44]} 50. Nf8 {[%clk 0:00:05]}  Kc4 {[%clk 0:00:43]} 51. Ne6 {[%clk 0:00:05]}  Kd5 {[%clk 0:00:41]} 52. Nf4+ {[%clk 0:00:04]}  Kd6 {[%clk 0:00:42]} 53. Ng2 {[%clk 0:00:02]}  Bg3 {[%clk 0:00:41]} 54. Kd2 {[%clk 0:00:02]}  Kd5 {[%clk 0:00:38]} 55. Kc3 {[%clk 0:00:03]}  Bc7 {[%clk 0:00:29]} 56. Kd2 {[%clk 0:00:02]}  Ke6 {[%clk 0:00:26]} 57. Nh4 {[%clk 0:00:02]}  Bg3 {[%clk 0:00:25]} 58. Ng2 {[%clk 0:00:03]}  Kf6 {[%clk 0:00:26]} 59. Ke2 {[%clk 0:00:03]}  Kg5 {[%clk 0:00:26]} 60. Kf1 {[%clk 0:00:02]}  Kh5 {[%clk 0:00:25]} 61. Ke2 {[%clk 0:00:03]}  Kg4 {[%clk 0:00:25]} 62. Kf1 {[%clk 0:00:02]}  Kf3 {[%clk 0:00:25]} 63. Kg1 {[%clk 0:00:02]}  Ke2 {[%clk 0:00:24]} 64. Kh1 {[%clk 0:00:01]}  Kf2 {[%clk 0:00:25]} 0-1


[Site "https://www.chess.com"]

[Event "Titled Tuesday Blitz January 17 Early 2023"]
[White "Dardha, Daniel"]
[Black "Pakleza, Zbigniew"]
[WhiteFideId "240990"]
[BlackFideId "1119290"]
[WhiteElo "2631"]
[BlackElo "2494"]
[Result "1-0"]
[Round "08"]
[TimeControl "180+2"]
[Date "2023.01.17"]
[WhiteClock "0:00:07"]
[BlackClock "0:00:01"]

1. d4 {[%clk 0:03:00]}  d6 {[%clk 0:02:58]} 2. Nf3 {[%clk 0:02:59]}  Bg4 {[%clk 0:02:58]} 3. e3 {[%clk 0:02:58]}  Nf6 {[%clk 0:02:57]} 4. c4 {[%clk 0:02:54]}  Nbd7 {[%clk 0:02:58]} 5. Nc3 {[%clk 0:02:54]}  e5 {[%clk 0:02:55]} 6. h3 {[%clk 0:02:54]}  Bh5 {[%clk 0:02:55]} 7. g4 {[%clk 0:02:54]}  Bg6 {[%clk 0:02:55]} 8. Nh4 {[%clk 0:02:54]}  Be7 {[%clk 0:02:33]} 9. Bg2 {[%clk 0:02:53]}  c6 {[%clk 0:02:33]} 10. O-O {[%clk 0:02:36]}  O-O {[%clk 0:02:30]} 11. Nxg6 {[%clk 0:02:32]}  hxg6 {[%clk 0:02:29]} 12. Qc2 {[%clk 0:02:13]}  Re8 {[%clk 0:02:27]} 13. b4 {[%clk 0:01:56]}  Rc8 {[%clk 0:02:04]} 14. g5 {[%clk 0:01:30]}  Nh5 {[%clk 0:02:02]} 15. h4 {[%clk 0:01:31]}  d5 {[%clk 0:01:19]} 16. cxd5 {[%clk 0:01:19]}  cxd5 {[%clk 0:01:20]} 17. Qb3 {[%clk 0:01:20]}  Nb6 {[%clk 0:01:00]} 18. Nxd5 {[%clk 0:01:17]}  Bd6 {[%clk 0:00:35]} 19. Nxb6 {[%clk 0:01:12]}  Qxb6 {[%clk 0:00:32]} 20. Bb2 {[%clk 0:01:09]}  e4 {[%clk 0:00:22]} 21. Rac1 {[%clk 0:01:08]}  Bc7 {[%clk 0:00:21]} 22. Qd5 {[%clk 0:00:55]}  Qxb4 {[%clk 0:00:13]} 23. Ba1 {[%clk 0:00:52]}  Red8 {[%clk 0:00:06]} 24. Qxe4 {[%clk 0:00:47]}  Qd6 {[%clk 0:00:06]} 25. Qe5 {[%clk 0:00:47]}  Qd7 {[%clk 0:00:04]} 26. Qe4 {[%clk 0:00:33]}  Qd6 {[%clk 0:00:04]} 27. Rfd1 {[%clk 0:00:32]}  Qh2+ {[%clk 0:00:03]} 28. Kf1 {[%clk 0:00:33]}  Re8 {[%clk 0:00:04]} 29. Qf3 {[%clk 0:00:33]}  Bb6 {[%clk 0:00:03]} 30. Qh3 {[%clk 0:00:32]}  Rxc1 {[%clk 0:00:02]} 31. Rxc1 {[%clk 0:00:32]}  Qd6 {[%clk 0:00:02]} 32. Rc8 {[%clk 0:00:29]}  Rxc8 {[%clk 0:00:02]} 33. Qxc8+ {[%clk 0:00:29]}  Kh7 {[%clk 0:00:03]} 34. Qxb7 {[%clk 0:00:29]}  Qa3 {[%clk 0:00:02]} 35. Bd5 {[%clk 0:00:11]}  Qc1+ {[%clk 0:00:02]} 36. Kg2 {[%clk 0:00:12]}  Bc7 {[%clk 0:00:02]} 37. Bb2 {[%clk 0:00:11]}  Qc2 {[%clk 0:00:02]} 38. Bxf7 {[%clk 0:00:10]}  Bg3 {[%clk 0:00:01]} 39. Qf3 {[%clk 0:00:07]} 1-0


[Site "https://www.chess.com"]

[Event "Titled Tuesday Blitz January 17 Early 2023"]
[White "Naroditsky, Daniel"]
[Black "Aravindh, Chithambaram VR."]
[WhiteFideId "2026961"]
[BlackFideId "5072786"]
[WhiteElo "2618"]
[BlackElo "2633"]
[Result "1-0"]
[Round "08"]
[TimeControl "180+2"]
[Date "2023.01.17"]
[WhiteClock "0:02:00"]
[BlackClock "0:00:01"]

1. e4 {[%clk 0:03:00]}  Nc6 {[%clk 0:02:56]} 2. Nf3 {[%clk 0:03:00]}  e5 {[%clk 0:02:55]} 3. Bb5 {[%clk 0:03:00]}  a6 {[%clk 0:02:53]} 4. Ba4 {[%clk 0:03:00]}  Nf6 {[%clk 0:02:53]} 5. O-O {[%clk 0:03:00]}  Nxe4 {[%clk 0:02:52]} 6. Re1 {[%clk 0:02:58]}  Nc5 {[%clk 0:02:50]} 7. Bxc6 {[%clk 0:02:58]}  dxc6 {[%clk 0:02:51]} 8. d4 {[%clk 0:02:59]}  Ne6 {[%clk 0:02:49]} 9. Nxe5 {[%clk 0:03:00]}  Be7 {[%clk 0:02:48]} 10. c3 {[%clk 0:03:01]}  O-O {[%clk 0:02:47]} 11. Be3 {[%clk 0:03:01]}  f6 {[%clk 0:02:37]} 12. Nd3 {[%clk 0:03:02]}  Rf7 {[%clk 0:02:28]} 13. Nd2 {[%clk 0:03:00]}  Bd6 {[%clk 0:02:26]} 14. Nc4 {[%clk 0:02:58]}  Bf8 {[%clk 0:02:14]} 15. h3 {[%clk 0:02:42]}  Qd5 {[%clk 0:02:13]} 16. Nd2 {[%clk 0:02:41]}  Bd7 {[%clk 0:02:08]} 17. c4 {[%clk 0:02:27]}  Qf5 {[%clk 0:02:08]} 18. Nf1 {[%clk 0:02:26]}  Rd8 {[%clk 0:01:42]} 19. Ng3 {[%clk 0:02:21]}  Qa5 {[%clk 0:01:42]} 20. a3 {[%clk 0:02:07]}  c5 {[%clk 0:00:56]} 21. dxc5 {[%clk 0:01:59]}  Ba4 {[%clk 0:00:45]} 22. Qg4 {[%clk 0:01:59]}  Rxd3 {[%clk 0:00:24]} 23. b4 {[%clk 0:01:58]}  Bd1 {[%clk 0:00:02]} 24. Rexd1 {[%clk 0:01:59]}  Rxd1+ {[%clk 0:00:01]} 25. Qxd1 {[%clk 0:02:00]} 1-0


[Site "https://www.chess.com"]

[Event "Titled Tuesday Blitz January 17 Early 2023"]
[White "Kravtsiv, Martyn"]
[Black "Duda, Jan-Krzysztof"]
[WhiteFideId "14113147"]
[BlackFideId "1170546"]
[WhiteElo "2598"]
[BlackElo "2724"]
[Result "1-0"]
[Round "08"]
[TimeControl "180+2"]
[Date "2023.01.17"]
[WhiteClock "0:00:10"]
[BlackClock "0:00:01"]

1. e4 {[%clk 0:03:00]}  e5 {[%clk 0:02:55]} 2. Nf3 {[%clk 0:03:01]}  Nc6 {[%clk 0:02:56]} 3. Nc3 {[%clk 0:03:01]}  Nf6 {[%clk 0:02:54]} 4. a4 {[%clk 0:03:01]}  h6 {[%clk 0:02:40]} 5. Bb5 {[%clk 0:02:59]}  Bd6 {[%clk 0:02:39]} 6. O-O {[%clk 0:02:53]}  O-O {[%clk 0:02:38]} 7. d3 {[%clk 0:02:52]}  Nd4 {[%clk 0:02:25]} 8. Nxd4 {[%clk 0:02:49]}  exd4 {[%clk 0:02:26]} 9. Ne2 {[%clk 0:02:49]}  c6 {[%clk 0:02:25]} 10. Bc4 {[%clk 0:02:48]}  Bc7 {[%clk 0:02:09]} 11. Nxd4 {[%clk 0:02:44]}  d5 {[%clk 0:02:10]} 12. exd5 {[%clk 0:02:44]}  Nxd5 {[%clk 0:02:09]} 13. Re1 {[%clk 0:02:21]}  Nb6 {[%clk 0:01:53]} 14. Be3 {[%clk 0:02:14]}  Nxc4 {[%clk 0:01:48]} 15. dxc4 {[%clk 0:02:15]}  Qh4 {[%clk 0:01:33]} 16. g3 {[%clk 0:01:58]}  Qh3 {[%clk 0:01:32]} 17. Qf3 {[%clk 0:01:55]}  Bg4 {[%clk 0:01:27]} 18. Qg2 {[%clk 0:01:52]}  Qh5 {[%clk 0:01:28]} 19. f3 {[%clk 0:01:45]}  Bd7 {[%clk 0:01:25]} 20. Qf2 {[%clk 0:01:41]}  Rad8 {[%clk 0:01:09]} 21. c3 {[%clk 0:01:39]}  b6 {[%clk 0:01:03]} 22. b4 {[%clk 0:01:36]}  c5 {[%clk 0:01:03]} 23. Nb5 {[%clk 0:01:35]}  Bb8 {[%clk 0:01:03]} 24. bxc5 {[%clk 0:01:34]}  Bc6 {[%clk 0:00:49]} 25. Nd4 {[%clk 0:01:30]}  Ba8 {[%clk 0:00:44]} 26. cxb6 {[%clk 0:01:27]}  axb6 {[%clk 0:00:41]} 27. Rab1 {[%clk 0:01:26]}  Bc7 {[%clk 0:00:35]} 28. Rb5 {[%clk 0:01:23]}  Qg6 {[%clk 0:00:35]} 29. Nf5 {[%clk 0:01:22]}  Rfe8 {[%clk 0:00:34]} 30. Bd4 {[%clk 0:01:13]}  Kh7 {[%clk 0:00:13]} 31. Nxg7 {[%clk 0:00:38]}  Rxe1+ {[%clk 0:00:13]} 32. Qxe1 {[%clk 0:00:38]}  Bxf3 {[%clk 0:00:13]} 33. Rf5 {[%clk 0:00:29]}  Ba8 {[%clk 0:00:09]} 34. Qf2 {[%clk 0:00:20]}  Qc6 {[%clk 0:00:09]} 35. Rd5 {[%clk 0:00:12]}  Rxd5 {[%clk 0:00:04]} 36. cxd5 {[%clk 0:00:13]}  Qxd5 {[%clk 0:00:04]} 37. Qf5+ {[%clk 0:00:13]}  Qxf5 {[%clk 0:00:02]} 38. Nxf5 {[%clk 0:00:13]}  Bc6 {[%clk 0:00:03]} 39. Ne7 {[%clk 0:00:13]}  Bxa4 {[%clk 0:00:02]} 40. Nd5 {[%clk 0:00:14]}  Bd6 {[%clk 0:00:02]} 41. Bxb6 {[%clk 0:00:14]}  Bc6 {[%clk 0:00:02]} 42. Nf6+ {[%clk 0:00:14]}  Kg6 {[%clk 0:00:02]} 43. Bd4 {[%clk 0:00:15]}  h5 {[%clk 0:00:02]} 44. Kf2 {[%clk 0:00:15]}  Be7 {[%clk 0:00:02]} 45. Ng8 {[%clk 0:00:13]}  Bf8 {[%clk 0:00:01]} 46. Ke3 {[%clk 0:00:10]} 1-0


[Site "https://www.chess.com"]

[Event "Titled Tuesday Blitz January 17 Early 2023"]
[White "Indjic, Aleksandar"]
[Black "Bluebaum, Matthias"]
[WhiteFideId "911925"]
[BlackFideId "24651516"]
[WhiteElo "2618"]
[BlackElo "2669"]
[Result "0-1"]
[Round "08"]
[TimeControl "180+2"]
[Date "2023.01.17"]
[WhiteClock "0:00:07"]
[BlackClock "0:00:14"]

1. e4 {[%clk 0:03:00]}  e6 {[%clk 0:02:59]} 2. d3 {[%clk 0:02:56]}  d5 {[%clk 0:03:00]} 3. Nd2 {[%clk 0:02:56]}  Nf6 {[%clk 0:03:00]} 4. Qe2 {[%clk 0:02:52]}  Be7 {[%clk 0:03:00]} 5. g3 {[%clk 0:02:51]}  a5 {[%clk 0:02:57]} 6. Nh3 {[%clk 0:02:48]}  a4 {[%clk 0:02:57]} 7. a3 {[%clk 0:02:47]}  c5 {[%clk 0:02:56]} 8. f4 {[%clk 0:02:47]}  Nc6 {[%clk 0:02:57]} 9. e5 {[%clk 0:02:46]}  Nd7 {[%clk 0:02:56]} 10. c3 {[%clk 0:02:46]}  b5 {[%clk 0:02:53]} 11. Nf3 {[%clk 0:02:45]}  b4 {[%clk 0:02:52]} 12. Bg2 {[%clk 0:02:39]}  bxc3 {[%clk 0:02:50]} 13. bxc3 {[%clk 0:02:40]}  Ba6 {[%clk 0:02:48]} 14. O-O {[%clk 0:02:39]}  O-O {[%clk 0:02:45]} 15. Nf2 {[%clk 0:02:25]}  Rb8 {[%clk 0:02:40]} 16. g4 {[%clk 0:02:23]}  Rb3 {[%clk 0:02:27]} 17. Bd2 {[%clk 0:02:19]}  Qc7 {[%clk 0:02:21]} 18. h4 {[%clk 0:02:09]}  Rfb8 {[%clk 0:02:20]} 19. h5 {[%clk 0:02:09]}  Rb2 {[%clk 0:02:16]} 20. Nd1 {[%clk 0:02:07]}  R2b3 {[%clk 0:02:12]} 21. Nf2 {[%clk 0:02:07]}  Rb2 {[%clk 0:02:02]} 22. g5 {[%clk 0:02:07]}  Qa5 {[%clk 0:01:54]} 23. Nd1 {[%clk 0:02:03]}  Rb1 {[%clk 0:01:54]} 24. Rxb1 {[%clk 0:02:02]}  Rxb1 {[%clk 0:01:55]} 25. c4 {[%clk 0:02:02]}  Qd8 {[%clk 0:01:49]} 26. cxd5 {[%clk 0:02:00]}  exd5 {[%clk 0:01:50]} 27. f5 {[%clk 0:01:59]}  Qe8 {[%clk 0:01:00]} 28. e6 {[%clk 0:01:43]}  Bd6 {[%clk 0:00:52]} 29. exf7+ {[%clk 0:01:22]}  Qxf7 {[%clk 0:00:53]} 30. g6 {[%clk 0:01:18]}  Qe7 {[%clk 0:00:53]} 31. gxh7+ {[%clk 0:00:49]}  Kh8 {[%clk 0:00:52]} 32. Ne3 {[%clk 0:00:36]}  Rxf1+ {[%clk 0:00:52]} 33. Qxf1 {[%clk 0:00:37]}  Qf7 {[%clk 0:00:36]} 34. Qf2 {[%clk 0:00:11]}  Qxh5 {[%clk 0:00:36]} 35. Nxd5 {[%clk 0:00:11]}  Bxd3 {[%clk 0:00:34]} 36. Qe3 {[%clk 0:00:09]}  Bxf5 {[%clk 0:00:30]} 37. Bc3 {[%clk 0:00:10]}  Nd4 {[%clk 0:00:26]} 38. Nxd4 {[%clk 0:00:09]}  cxd4 {[%clk 0:00:26]} 39. Bxd4 {[%clk 0:00:09]}  Kxh7 {[%clk 0:00:18]} 40. Nf4 {[%clk 0:00:08]}  Qd1+ {[%clk 0:00:17]} 41. Kh2 {[%clk 0:00:09]}  Qg4 {[%clk 0:00:17]} 42. Kg1 {[%clk 0:00:06]}  Bxf4 {[%clk 0:00:18]} 43. Qc3 {[%clk 0:00:03]}  Qd1+ {[%clk 0:00:17]} 44. Kf2 {[%clk 0:00:03]}  Qd2+ {[%clk 0:00:17]} 45. Qxd2 {[%clk 0:00:04]}  Bxd2 {[%clk 0:00:17]} 46. Bc6 {[%clk 0:00:04]}  Bc1 {[%clk 0:00:08]} 47. Bxa4 {[%clk 0:00:04]}  Bxa3 {[%clk 0:00:09]} 48. Bxg7 {[%clk 0:00:04]}  Kxg7 {[%clk 0:00:09]} 49. Bc6 {[%clk 0:00:04]}  Bc5+ {[%clk 0:00:09]} 50. Ke2 {[%clk 0:00:04]}  Ne5 {[%clk 0:00:10]} 51. Bd5 {[%clk 0:00:04]}  Kf6 {[%clk 0:00:10]} 52. Kd2 {[%clk 0:00:05]}  Bd4 {[%clk 0:00:10]} 53. Bb3 {[%clk 0:00:04]}  Nf3+ {[%clk 0:00:10]} 54. Ke2 {[%clk 0:00:05]}  Be4 {[%clk 0:00:10]} 55. Bc2 {[%clk 0:00:03]}  Bxc2 {[%clk 0:00:09]} 56. Kxf3 {[%clk 0:00:04]}  Bf5 {[%clk 0:00:10]} 57. Ke2 {[%clk 0:00:05]}  Be4 {[%clk 0:00:10]} 58. Kd2 {[%clk 0:00:05]}  Ke5 {[%clk 0:00:11]} 59. Ke2 {[%clk 0:00:06]}  Kf4 {[%clk 0:00:11]} 60. Kd2 {[%clk 0:00:06]}  Kf3 {[%clk 0:00:12]} 61. Ke1 {[%clk 0:00:05]}  Bc3+ {[%clk 0:00:12]} 62. Kd1 {[%clk 0:00:04]}  Bd3 {[%clk 0:00:12]} 63. Kc1 {[%clk 0:00:04]}  Ke3 {[%clk 0:00:13]} 64. Kd1 {[%clk 0:00:05]}  Bb2 {[%clk 0:00:10]} 65. Ke1 {[%clk 0:00:05]}  Bc2 {[%clk 0:00:10]} 66. Kf1 {[%clk 0:00:05]}  Kf3 {[%clk 0:00:10]} 67. Ke1 {[%clk 0:00:05]}  Bc3+ {[%clk 0:00:11]} 68. Kf1 {[%clk 0:00:06]}  Bd3+ {[%clk 0:00:11]} 69. Kg1 {[%clk 0:00:06]}  Kg3 {[%clk 0:00:12]} 70. Kh1 {[%clk 0:00:06]}  Be2 {[%clk 0:00:13]} 71. Kg1 {[%clk 0:00:06]}  Bd4+ {[%clk 0:00:13]} 72. Kh1 {[%clk 0:00:07]}  Bf3# {[%clk 0:00:14]} 0-1


[Site "https://www.chess.com"]

[Event "Titled Tuesday Blitz January 17 Early 2023"]
[White "Pultinevicius, Paulius"]
[Black "Bortnyk, Olexandr"]
[WhiteFideId "12809390"]
[BlackFideId "14120828"]
[WhiteElo "2537"]
[BlackElo "2605"]
[Result "1-0"]
[Round "08"]
[TimeControl "180+2"]
[Date "2023.01.17"]
[WhiteClock "0:00:04"]
[BlackClock "0:00:13"]

1. d4 {[%clk 0:03:00]}  d6 {[%clk 0:02:55]} 2. Nf3 {[%clk 0:02:58]}  Nf6 {[%clk 0:02:55]} 3. c4 {[%clk 0:02:58]}  g6 {[%clk 0:02:55]} 4. Nc3 {[%clk 0:02:58]}  Bf5 {[%clk 0:02:55]} 5. Nh4 {[%clk 0:02:57]}  Bd7 {[%clk 0:02:55]} 6. e4 {[%clk 0:02:57]}  Bg7 {[%clk 0:02:56]} 7. Be2 {[%clk 0:02:55]}  O-O {[%clk 0:02:56]} 8. Nf3 {[%clk 0:02:55]}  c5 {[%clk 0:02:52]} 9. d5 {[%clk 0:02:52]}  Na6 {[%clk 0:02:52]} 10. O-O {[%clk 0:02:45]}  Nc7 {[%clk 0:02:52]} 11. e5 {[%clk 0:02:36]}  Ng4 {[%clk 0:02:29]} 12. exd6 {[%clk 0:02:29]}  exd6 {[%clk 0:02:30]} 13. Bf4 {[%clk 0:02:28]}  Ne8 {[%clk 0:02:20]} 14. Qd2 {[%clk 0:02:24]}  Ne5 {[%clk 0:02:02]} 15. Nxe5 {[%clk 0:02:20]}  Bxe5 {[%clk 0:02:03]} 16. Bxe5 {[%clk 0:02:16]}  dxe5 {[%clk 0:02:04]} 17. a3 {[%clk 0:01:38]}  Nd6 {[%clk 0:02:01]} 18. b4 {[%clk 0:01:37]}  b6 {[%clk 0:02:01]} 19. bxc5 {[%clk 0:01:17]}  bxc5 {[%clk 0:02:02]} 20. Qe3 {[%clk 0:01:17]}  Qe7 {[%clk 0:01:59]} 21. Qxc5 {[%clk 0:01:12]}  Rfc8 {[%clk 0:01:58]} 22. Qb4 {[%clk 0:01:03]}  a5 {[%clk 0:01:52]} 23. Qb3 {[%clk 0:01:01]}  Rab8 {[%clk 0:01:52]} 24. Qa2 {[%clk 0:01:02]}  Qh4 {[%clk 0:01:49]} 25. Rac1 {[%clk 0:00:52]}  Rc5 {[%clk 0:01:30]} 26. Nb5 {[%clk 0:00:36]}  Nf5 {[%clk 0:01:00]} 27. Rfd1 {[%clk 0:00:28]}  Qg5 {[%clk 0:00:55]} 28. Rb1 {[%clk 0:00:23]}  Bxb5 {[%clk 0:00:53]} 29. Rxb5 {[%clk 0:00:20]}  Rbxb5 {[%clk 0:00:53]} 30. cxb5 {[%clk 0:00:21]}  Nd4 {[%clk 0:00:54]} 31. Bf1 {[%clk 0:00:11]}  Rc2 {[%clk 0:00:48]} 32. Qxc2 {[%clk 0:00:04]}  Nxc2 {[%clk 0:00:46]} 33. b6 {[%clk 0:00:05]}  Qg4 {[%clk 0:00:16]} 34. Rc1 {[%clk 0:00:04]}  Qd7 {[%clk 0:00:09]} 35. Rxc2 {[%clk 0:00:04]}  Qxd5 {[%clk 0:00:09]} 36. Rb2 {[%clk 0:00:03]}  Qd4 {[%clk 0:00:09]} 37. Rb1 {[%clk 0:00:03]}  Qe4 {[%clk 0:00:09]} 38. Rb2 {[%clk 0:00:02]}  Qd4 {[%clk 0:00:10]} 39. Rb5 {[%clk 0:00:02]}  e4 {[%clk 0:00:09]} 40. b7 {[%clk 0:00:02]}  e3 {[%clk 0:00:10]} 41. b8=Q+ {[%clk 0:00:03]}  Kg7 {[%clk 0:00:11]} 42. Qe5+ {[%clk 0:00:03]}  Qxe5 {[%clk 0:00:12]} 43. Rxe5 {[%clk 0:00:04]}  exf2+ {[%clk 0:00:13]} 44. Kxf2 {[%clk 0:00:04]} 1-0


[Site "https://www.chess.com"]